bitfinex/quotes_BTCUSD_20250619
["timestamp","ask_amount","ask_price","bid_price","bid_amount"]
[1750309400101,0.49326612,105160.0,105150.0,0.66198901]
[1750309401297,0.49326557,105160.0,105150.0,0.66198901]
[1750309404123,0.48434669,105160.0,105150.0,0.66198901]
[1750309404356,0.49326583,105160.0,105150.0,0.66198901]
[1750309407014,0.4665088,105160.0,105150.0,0.66198901]
[1750309407203,0.49326752,105160.0,105150.0,0.66198901]
[1750309409872,0.46873909,105160.0,105150.0,0.66198901]
[1750309410091,0.49326722,105160.0,105150.0,0.66198901]
[1750309412726,0.45981966,105160.0,105150.0,0.67149896]
[1750309412941,0.49326573,105160.0,105150.0,0.67149896]
[1750309414783,0.48434678,105160.0,105150.0,0.67149896]
[1750309414997,0.49326534,105160.0,105150.0,0.67149896]
[1750309415561,0.49326534,105160.0,105150.0,0.68100882]
[1750309415809,0.49326409,105160.0,105150.0,0.68100882]
[1750309417228,0.50277322,105160.0,105150.0,0.77725058]
[1750309417475,0.50277322,105160.0,105150.0,0.78676035]
[1750309417735,0.50277322,105160.0,105150.0,0.76774072]
[1750309418434,0.48716574,105160.0,105150.0,0.76774072]
[1750309418640,0.50277306,105160.0,105150.0,0.76774072]
[1750309420879,0.50277306,105160.0,105150.0,0.77725058]
[1750309421393,0.50277473,105160.0,105150.0,0.77725058]
[1750309422885,0.50277473,105160.0,105150.0,0.74872073]
[1750309423317,0.4932656,105160.0,105150.0,0.54892614]
[1750309424243,0.49326907,105160.0,105150.0,0.54892614]
[1750309425050,0.49326907,105160.0,105150.0,0.45268438]
[1750309425266,0.49326907,105160.0,105150.0,0.43028438]
[1750309427090,0.45981966,105160.0,105150.0,0.43028438]
[1750309427296,0.49327635,105160.0,105150.0,0.43028438]
[1750309428409,0.48658501,105160.0,105150.0,0.43028438]
[1750309428646,0.49327627,105160.0,105150.0,0.43028438]
[1750309429994,0.46874101,105160.0,105150.0,0.43028438]
[1750309430216,0.49327472,105160.0,105150.0,0.43028438]
[1750309431663,0.49327472,105160.0,105150.0,0.45408438]
[1750309432870,0.49327379,105160.0,105150.0,0.45408438]
[1750309435244,0.49327331,105160.0,105150.0,0.45408438]
[1750309435663,0.49327331,105160.0,105150.0,0.43028438]
[1750309436296,0.4932729,105160.0,105150.0,0.43028438]
[1750309436936,0.4932729,105160.0,105150.0,0.25198438]
[1750309437145,0.4932729,105160.0,105150.0,0.40574438]
[1750309437451,0.49327252,105160.0,105150.0,0.40574438]
[1750309437874,0.49327224,105160.0,105150.0,0.40574438]
[1750309438418,0.49327224,105160.0,105150.0,0.21262438]
[1750309438618,0.49327224,105160.0,105150.0,0.40574438]
[1750309438826,0.49327225,105160.0,105150.0,0.40574438]
[1750309439037,0.49327218,105160.0,105150.0,0.42914438]
[1750309440144,0.49327163,105160.0,105150.0,0.42914438]
[1750309440849,0.49327163,105160.0,105150.0,0.45264438]
[1750309441613,0.49327143,105160.0,105150.0,0.45264438]
[1750309444472,0.48435106,105160.0,105150.0,0.45264438]
[1750309444732,0.49327157,105160.0,105150.0,0.45264438]
[1750309447453,0.49327277,105160.0,105150.0,0.45264438]
[1750309450291,0.49327394,105160.0,105150.0,0.45264438]
[1750309453170,0.49327606,105160.0,105150.0,0.45264438]
[1750309453403,0.5313248,105160.0,105150.0,0.45264438]
[1750309458421,0.53132907,105160.0,105150.0,0.45264438]
[1750309458874,0.52240636,105160.0,105150.0,0.45264438]
[1750309459097,0.53132933,105160.0,105150.0,0.45264438]
[1750309459847,0.53132933,105160.0,105150.0,0.65235888]
[1750309460082,0.49328049,105160.0,105150.0,0.65235906]
[1750309460301,0.49328049,105160.0,105150.0,0.4621546]
[1750309460702,0.49328049,105160.0,105150.0,0.66186919]
[1750309460940,0.49327799,105160.0,105150.0,0.66186919]
[1750309461894,0.51229518,105160.0,105150.0,0.67137914]
[1750309462129,0.52180404,105160.0,105150.0,0.67137914]
[1750309462371,0.51229518,105160.0,105150.0,0.67137914]
[1750309462841,0.47883801,105160.0,105150.0,0.67137914]
[1750309463088,0.51229412,105160.0,105150.0,0.67137914]
[1750309464825,0.51229306,105160.0,105150.0,0.67137914]
[1750309466072,0.32210668,105160.0,105150.0,0.67137914]
[1750309466320,0.52180237,105160.0,105150.0,0.78664035]
[1750309467186,0.52180237,105160.0,105150.0,0.77713076]
[1750309467654,0.52179917,105160.0,105150.0,0.77713076]
[1750309469128,0.52179917,105160.0,105150.0,0.78664053]
[1750309470709,0.52179917,105160.0,105150.0,0.78663999]
[1750309472257,0.52180659,105160.0,105150.0,0.78663999]
[1750309473398,0.5218037,105160.0,105150.0,0.78663945]
[1750309473766,0.31259825,105160.0,105150.0,0.78663945]
[1750309474039,0.27454597,105160.0,105150.0,0.78663945]
[1750309474258,0.25952532,105160.0,105150.0,0.78663945]
[1750309475114,0.26903409,105160.0,105150.0,0.78663945]
[1750309475349,0.07934703,105160.0,105150.0,0.78663945]
[1750309475578,0.05651208,105160.0,105150.0,0.78663945]
[1750309476290,0.06601607,105160.0,105150.0,0.78663945]
[1750309476935,0.05650712,105160.0,105150.0,0.78663945]
[1750309477596,0.06601607,105160.0,105150.0,0.78663945]
[1750309478356,0.05650712,105160.0,105150.0,0.78663945]
[1750309478573,0.06601607,105160.0,105150.0,0.78663945]
[1750309479477,0.06601598,105160.0,105150.0,0.78663945]
[1750309479977,0.07552493,105160.0,105150.0,0.78663945]
[1750309480742,0.06601598,105160.0,105150.0,0.78663945]
[1750309481262,0.05650712,105160.0,105150.0,0.78663945]
[1750309482151,0.06601598,105160.0,105150.0,0.78663945]
[1750309482988,0.40601598,105160.0,105150.0,0.78663945]
[1750309483199,0.42885093,105160.0,105150.0,0.78663945]
[1750309484266,0.42884823,105160.0,105150.0,0.78663945]
[1750309486194,0.42884867,105160.0,105150.0,0.78663945]
[1750309487587,0.41933981,105160.0,105150.0,0.78663945]
[1750309487834,0.4193408,105160.0,105150.0,0.78663945]
[1750309490753,0.41042731,105160.0,105150.0,0.78663945]
[1750309491054,0.41934127,105160.0,105150.0,0.78663945]
[1750309492347,0.4098325,105160.0,105150.0,0.78663945]
[1750309493249,0.40032391,105160.0,105150.0,0.78663945]
[1750309493704,0.40032428,105160.0,105150.0,0.78663945]
[1750309493930,0.40983278,105160.0,105150.0,0.78663945]
[1750309494129,0.40032428,105160.0,105150.0,0.78663945]
[1750309495198,0.40983296,105160.0,105150.0,0.78663945]
[1750309496405,0.41934182,105160.0,105150.0,0.78663945]
[1750309496616,0.40983296,105160.0,105150.0,0.78663945]
[1750309497450,0.38125796,105160.0,105150.0,0.78663945]
[1750309497875,0.39076673,105160.0,105150.0,0.78663945]
[1750309498089,0.39076772,105160.0,105150.0,0.78663945]
[1750309498718,0.38125895,105160.0,105150.0,0.78663945]
[1750309499578,0.38126065,105160.0,105150.0,0.78663945]
[1750309499874,0.39076942,105160.0,105150.0,0.78663945]
[1750309500078,0.38126065,105160.0,105150.0,0.78663945]
[1750309500499,0.38126056,105160.0,105150.0,0.78663945]
[1750309501874,0.38126046,105160.0,105150.0,0.78663945]
[1750309502300,0.38126364,105160.0,105150.0,0.78663945]
[1750309503049,0.38126355,105160.0,105150.0,0.78663945]
[1750309504189,0.37175505,105160.0,105150.0,0.78663945]
[1750309504435,0.03175505,105160.0,105150.0,0.78663945]
[1750309504641,0.0089201,105160.0,105150.0,0.78663945]
[1750309504865,0.40978414,105170.0,105160.0,0.26491323]
[1750309505048,0.4247989,105170.0,105160.0,0.36115499]
[1750309505719,0.42479889,105170.0,105160.0,0.36115499]
[1750309506355,0.42779889,105170.0,105160.0,0.36115499]
[1750309507012,0.41078297,105170.0,105160.0,0.36115499]
[1750309507232,0.0367524,105170.0,105160.0,0.36115499]
[1750309507460,0.35391745,105170.0,105160.0,0.36115499]
[1750309507671,0.0367524,105170.0,105160.0,0.36115499]
[1750309507877,0.01191745,105170.0,105160.0,0.36115499]
[1750309508092,0.01191091,105170.0,105160.0,0.36115499]
[1750309509509,0.00891091,105170.0,105160.0,0.36115499]
[1750309509719,0.44558787,105180.0,105170.0,0.26609244]
[1750309509932,0.40696293,105180.0,105170.0,0.45909244]
[1750309510146,0.40696293,105180.0,105170.0,0.5553342]
[1750309510357,0.06696293,105180.0,105170.0,0.5553342]
[1750309510569,0.04412798,105180.0,105170.0,0.5553342]
[1750309510990,0.04712798,105180.0,105170.0,0.5553342]
[1750309511386,0.04812798,105180.0,105170.0,0.5553342]
[1750309512306,0.04812798,105180.0,105170.0,0.6653342]
[1750309512514,0.05012798,105180.0,105170.0,0.6653342]
[1750309512920,0.04812798,105180.0,105170.0,0.6653342]
[1750309513129,0.04811845,105180.0,105170.0,0.6653342]
[1750309513792,0.04811804,105180.0,105170.0,0.6653342]
[1750309514542,0.05762482,105180.0,105170.0,0.6653342]
[1750309514749,0.04811804,105180.0,105170.0,0.6653342]
[1750309515585,0.04811804,105180.0,105170.0,0.9568342]
[1750309516006,0.04411804,105180.0,105170.0,0.9568342]
[1750309516215,0.04411804,105180.0,105170.0,0.9578342]
[1750309516625,0.04411804,105180.0,105170.0,0.9588342]
[1750309525246,0.03521739,105180.0,105170.0,0.9588342]
[1750309525458,0.04411608,105180.0,105170.0,0.9588342]
[1750309525663,0.00889869,105180.0,105170.0,0.9588342]
[1750309525872,0.40980991,105190.0,105180.0,0.24177164]
[1750309526123,0.4276101,105190.0,105180.0,0.3620134]
[1750309526359,0.45630364,105190.0,105180.0,0.3620134]
[1750309526796,0.44679722,105190.0,105180.0,0.3620134]
[1750309527017,0.45630364,105190.0,105180.0,0.3620134]
[1750309527261,0.45730364,105190.0,105180.0,0.3620134]
[1750309528285,0.4573036,105190.0,105180.0,0.3620134]
[1750309529180,0.44780281,105190.0,105180.0,0.3620134]
[1750309529381,0.07928436,105190.0,105180.0,0.3620134]
[1750309529583,0.03864362,105190.0,105180.0,0.3620134]
[1750309529758,0.37864362,105190.0,105180.0,0.3620134]
[1750309530334,0.03864362,105190.0,105180.0,0.3620134]
[1750309530778,0.04814941,105190.0,105180.0,0.3620134]
[1750309530996,0.03864579,105190.0,105180.0,0.3620134]
[1750309531226,0.04815158,105190.0,105180.0,0.3630134]
[1750309531670,0.04715158,105190.0,105180.0,0.3630134]
[1750309531892,0.03764579,105190.0,105180.0,0.3640134]
[1750309532478,0.04715158,105190.0,105180.0,0.3640134]
[1750309533469,0.04715158,105190.0,105180.0,0.6555134]
[1750309533901,0.03764579,105190.0,105180.0,0.6555134]
[1750309536934,0.03765126,105190.0,105180.0,0.6555134]
[1750309539746,0.0376516,105190.0,105180.0,0.6555134]
[1750309540209,0.05546834,105190.0,105180.0,0.6555134]
[1750309541974,0.0376516,105190.0,105180.0,0.6555134]
[1750309545679,0.03765102,105190.0,105180.0,0.6555134]
[1750309548308,0.03765102,105190.0,105180.0,0.6947934]
[1750309551971,0.03765083,105190.0,105180.0,0.6947934]
[1750309553134,0.01005,105200.0,105190.0,0.72929171]
[1750309553374,5e-05,105210.0,105200.0,0.27927093]
[1750309553614,5e-05,105210.0,105200.0,0.73387959]
[1750309553852,5e-05,105210.0,105200.0,0.92723959]
[1750309554072,5e-05,105210.0,105200.0,0.73538296]
[1750309554293,5e-05,105210.0,105200.0,1.45211676]
[1750309554761,5e-05,105210.0,105200.0,1.50211676]
[1750309554993,5e-05,105210.0,105200.0,1.14334058]
[1750309555216,0.00011,105220.0,105210.0,1.03568775]
[1750309555469,5e-05,105240.0,105230.0,0.26326775]
[1750309555686,5e-05,105240.0,105230.0,1.60392798]
[1750309556151,5e-05,105240.0,105230.0,1.79763077]
[1750309556339,5e-05,105240.0,105230.0,1.82587603]
[1750309556811,5e-05,105240.0,105230.0,1.82883603]
[1750309557508,5e-05,105240.0,105230.0,1.27731841]
[1750309557726,5e-05,105240.0,105230.0,1.82883603]
[1750309558192,5e-05,105240.0,105230.0,1.83383603]
[1750309558682,5e-05,105240.0,105230.0,2.12533603]
[1750309560328,5e-05,105240.0,105230.0,1.83383603]
[1750309560778,0.34,105280.0,105270.0,0.21848471]
[1750309561024,0.34,105280.0,105270.0,0.50848647]
[1750309561253,0.34,105280.0,105270.0,0.70732765]
[1750309561943,5e-05,105290.0,105280.0,0.21846394]
[1750309562225,5e-05,105290.0,105280.0,0.3147057]
[1750309562438,0.00954676,105290.0,105280.0,0.3147057]
[1750309562661,0.0190437,105290.0,105280.0,0.3147057]
[1750309562890,0.04753524,105290.0,105280.0,0.3147057]
[1750309563114,0.04753596,105290.0,105280.0,0.3147057]
[1750309563339,0.03603848,105290.0,105280.0,0.3147057]
[1750309563588,0.02654109,105290.0,105280.0,0.3147057]
[1750309563848,0.03703839,105290.0,105280.0,0.3147057]
[1750309564295,0.1610792,105330.0,105310.0,0.1994098]
[1750309564520,0.01898902,105320.0,105310.0,0.29565108]
[1750309564768,0.02848371,105320.0,105310.0,0.49898667]
[1750309565005,0.00949406,105320.0,105310.0,0.51797722]
[1750309565465,0.01828887,105320.0,105310.0,0.51797722]
[1750309565713,0.00879481,105320.0,105310.0,0.51797722]
[1750309565945,0.00879481,105320.0,105310.0,0.54067722]
[1750309566891,0.03301016,105320.0,105310.0,0.54067722]
[1750309567113,0.03301016,105320.0,105310.0,0.31464208]
[1750309567403,0.04250422,105320.0,105310.0,0.51801722]
[1750309567864,0.04250431,105320.0,105310.0,0.51801722]
[1750309568076,0.04350431,105320.0,105310.0,0.51801722]
[1750309568295,0.04350431,105320.0,105310.0,0.51805722]
[1750309568553,0.03401016,105320.0,105310.0,0.51805722]
[1750309568990,0.04350422,105320.0,105310.0,0.51805722]
[1750309569224,0.03401016,105320.0,105310.0,0.51805722]
[1750309569508,0.03401016,105320.0,105310.0,0.53975722]
[1750309569752,0.03399705,105320.0,105310.0,0.53975722]
[1750309570626,0.05154782,105320.0,105310.0,0.64975722]
[1750309570875,0.05154782,105320.0,105310.0,0.53975722]
[1750309571808,0.05154782,105320.0,105310.0,0.83125722]
[1750309572873,0.05154782,105320.0,105310.0,0.85485722]
[1750309573987,0.05154641,105320.0,105310.0,0.85485722]
[1750309574413,0.05154641,105320.0,105310.0,0.83941377]
[1750309575594,0.05154641,105320.0,105310.0,0.94941377]
[1750309576539,0.05154641,105320.0,105310.0,0.96395462]
[1750309576766,0.05157432,105320.0,105310.0,0.96395462]
[1750309577716,0.05158211,105320.0,105310.0,0.96395462]
[1750309578393,0.05158211,105320.0,105310.0,0.96439462]
[1750309578622,0.06107617,105320.0,105310.0,0.96439462]
[1750309578856,0.05158211,105320.0,105310.0,0.9520402]
[1750309579555,0.03402186,105320.0,105310.0,0.9520402]
[1750309579777,0.05163488,105320.0,105310.0,0.9520402]
[1750309580011,0.05163802,105320.0,105310.0,0.9520402]
[1750309581132,0.05163802,105320.0,105310.0,0.93745935]
[1750309581594,0.05163802,105320.0,105310.0,0.92201654]
[1750309582419,0.05169897,105320.0,105310.0,0.92201654]
[1750309583755,0.05834332,105320.0,105310.0,0.92201654]
[1750309584485,0.0808966,105320.0,105310.0,0.92201654]
[1750309584949,0.06544574,105320.0,105310.0,0.92201654]
[1750309585415,0.04776863,105320.0,105310.0,0.95417098]
[1750309585666,0.05441348,105320.0,105310.0,0.95417098]
[1750309585903,0.0544141,105320.0,105310.0,0.93675739]
[1750309586132,0.06328227,105320.0,105310.0,0.89453178]
[1750309586345,0.06328227,105320.0,105310.0,0.91813178]
[1750309586595,0.06328227,105320.0,105310.0,0.92361654]
[1750309586829,0.06328227,105320.0,105310.0,0.92461654]
[1750309587066,0.0544141,105320.0,105310.0,0.92461654]
[1750309587294,0.0534141,105320.0,105310.0,0.92461654]
[1750309587744,0.06290834,105320.0,105310.0,0.92461654]
[1750309588017,0.06290834,105320.0,105310.0,0.92561654]
[1750309588466,0.06290825,105320.0,105310.0,0.92561654]
[1750309588683,0.06292527,105320.0,105310.0,0.92561654]
[1750309588902,0.0724196,105320.0,105310.0,0.92561654]
[1750309589128,0.61181246,105320.0,105310.0,0.68965724]
[1750309589356,0.70569115,105320.0,105310.0,0.49974176]
[1750309589607,0.54894634,105290.0,105280.0,0.48146533]
[1750309589818,0.56510631,105290.0,105280.0,0.49914321]
[1750309590067,0.58765959,105290.0,105280.0,0.51821952]
[1750309590344,0.58765959,105290.0,105280.0,0.14491959]
[1750309590589,0.59593591,105290.0,105280.0,0.29975959]
[1750309590821,0.62447391,105290.0,105280.0,0.10507959]
[1750309591061,0.62447391,105290.0,105280.0,0.29983959]
[1750309591276,0.63335298,105290.0,105280.0,0.09624176]
[1750309591501,0.63334988,105290.0,105280.0,0.09624176]
[1750309591723,0.69219926,105290.0,105280.0,0.13608176]
[1750309591941,0.69219926,105290.0,105280.0,0.29100176]
[1750309592392,0.63534988,105290.0,105280.0,0.29100176]
[1750309593098,0.61757635,105290.0,105280.0,0.29100176]
[1750309593327,0.63534695,105290.0,105280.0,0.13608176]
[1750309593557,0.63534695,105290.0,105280.0,0.29100176]
[1750309593774,0.63534695,105290.0,105280.0,0.09624176]
[1750309594043,0.63534695,105290.0,105280.0,0.49046984]
[1750309594457,0.33320168,105290.0,105280.0,0.49046984]
[1750309595469,0.29532493,105290.0,105280.0,0.49046984]
[1750309595904,0.29532493,105290.0,105280.0,0.49996804]
[1750309596177,0.29532493,105290.0,105280.0,0.50946615]
[1750309596428,0.29532117,105290.0,105280.0,0.50946615]
[1750309597100,0.29532117,105290.0,105280.0,0.51896417]
[1750309597553,0.29531056,105290.0,105280.0,0.51896417]
[1750309597768,0.28581308,105290.0,105280.0,0.51896417]
[1750309598262,0.27275728,105290.0,105280.0,0.51896417]
[1750309598925,0.08280382,105290.0,105280.0,0.51896417]
[1750309599147,0.44550454,105290.0,105280.0,0.51896417]
[1750309599587,0.44550454,105290.0,105280.0,0.5284621]
[1750309599588,0.44550409,105290.0,105280.0,0.5284621]
[1750309599873,0.44550409,105290.0,105280.0,0.52846146]
[1750309600132,0.44550409,105290.0,105280.0,0.51896362]
[1750309600345,0.45500121,105290.0,105280.0,0.51896362]
[1750309600589,0.45500121,105290.0,105280.0,0.50946569]
[1750309600814,0.43725085,105290.0,105280.0,0.50946569]
[1750309601039,0.42775364,105290.0,105280.0,0.52846146]
[1750309601336,0.43725085,105290.0,105280.0,0.52846146]
[1750309601554,0.42775364,105290.0,105280.0,0.52846146]
[1750309601770,0.40875976,105290.0,105280.0,0.52846146]
[1750309602000,0.42775355,105290.0,105280.0,0.52846146]
[1750309602219,0.42775346,105290.0,105280.0,0.52846146]
[1750309602690,0.40875976,105290.0,105280.0,0.52846146]
[1750309602937,0.42775355,105290.0,105280.0,0.55086146]
[1750309603206,0.42773718,105290.0,105280.0,0.55086146]
[1750309603551,0.4372343,105290.0,105280.0,0.52846146]
[1750309604023,0.45622899,105290.0,105280.0,0.52846146]
[1750309604686,0.45622971,105290.0,105280.0,0.52846146]
[1750309604903,0.44673214,105290.0,105280.0,0.55186146]
[1750309605406,0.45622971,105290.0,105280.0,0.55186146]
[1750309606136,0.44958485,105290.0,105280.0,0.55186146]
[1750309606358,0.44008728,105290.0,105280.0,0.66186146]
[1750309607282,0.44008728,105290.0,105280.0,0.63846146]
[1750309607513,0.63003884,105290.0,105280.0,0.61946569]
[1750309607736,0.63003884,105290.0,105280.0,0.65286362]
[1750309608440,0.06209853,105290.0,105280.0,0.66236146]
[1750309608658,0.01149676,105290.0,105280.0,0.68596146]
[1750309609568,0.002,105290.0,105280.0,0.68596146]
[1750309610255,0.01149685,105290.0,105280.0,0.68596146]
[1750309610765,0.002,105290.0,105280.0,0.68596146]
[1750309610983,0.01149685,105290.0,105280.0,0.68596146]
[1750309611202,0.002,105290.0,105280.0,0.68596146]
[1750309611857,0.02099397,105290.0,105280.0,0.68596146]
[1750309612590,0.02099388,105290.0,105280.0,0.68596146]
[1750309613017,0.01149685,105290.0,105280.0,0.68596146]
[1750309613739,0.02099388,105290.0,105280.0,0.68596146]
[1750309614438,0.01149685,105290.0,105280.0,0.68596146]
[1750309614667,0.02099388,105290.0,105280.0,0.68596146]
[1750309614890,0.002,105290.0,105280.0,0.68596146]
[1750309615107,0.01149685,105290.0,105280.0,0.68596146]
[1750309615331,0.02099388,105290.0,105280.0,0.68596146]
[1750309615897,0.01149685,105290.0,105280.0,0.68596146]
[1750309616122,0.02099388,105290.0,105280.0,0.68596146]
[1750309616498,0.01149685,105290.0,105280.0,0.68596146]
[1750309617158,0.02099388,105290.0,105280.0,0.68596146]
[1750309617623,0.01149685,105290.0,105280.0,0.68596146]
[1750309619519,0.02099379,105290.0,105280.0,0.68596146]
[1750309622330,0.03049082,105290.0,105280.0,0.68596146]
[1750309622541,0.02099379,105290.0,105280.0,0.68596146]
[1750309622765,0.03049091,105290.0,105280.0,0.68596146]
[1750309622981,0.03049082,105290.0,105280.0,0.68596146]
[1750309623447,0.03049082,105290.0,105280.0,0.68568146]
[1750309623691,0.02099379,105290.0,105280.0,0.68568146]
[1750309624735,0.01149685,105290.0,105280.0,0.68568146]
[1750309624956,0.002,105290.0,105280.0,0.70022231]
[1750309625373,0.002,105290.0,105280.0,0.77687636]
[1750309626448,0.39118614,105310.0,105300.0,0.21842245]
[1750309626653,0.38169091,105310.0,105300.0,0.55666421]
[1750309626855,0.37219577,105310.0,105300.0,0.55666421]
[1750309627275,0.36270072,105310.0,105300.0,0.55666421]
[1750309627684,0.02270072,105310.0,105300.0,0.84816421]
[1750309627896,0.03393824,105320.0,105310.0,0.26690171]
[1750309628095,0.38282821,105320.0,105310.0,0.36314347]
[1750309628300,0.3960949,105320.0,105310.0,0.36314347]
[1750309628509,0.0560949,105320.0,105310.0,0.65464347]
[1750309628724,0.024444,105320.0,105310.0,0.65464347]
[1750309628952,0.02276093,105330.0,105320.0,0.21838098]
[1750309629162,0.35903495,105340.0,105330.0,0.26766025]
[1750309629367,0.39127666,105340.0,105330.0,0.36390201]
[1750309629576,0.03167918,105340.0,105330.0,0.36390201]
[1750309629789,0.00893035,105340.0,105330.0,0.36390201]
[1750309630007,0.00954225,105340.0,105330.0,0.36390201]
[1750309630212,0.00893035,105340.0,105330.0,0.44055606]
[1750309630421,0.00954243,105340.0,105330.0,0.36390201]
[1750309630627,0.02791539,105340.0,105330.0,0.36390201]
[1750309630822,0.05501695,105340.0,105330.0,0.36390201]
[1750309631078,0.02852792,105340.0,105330.0,0.38152135]
[1750309631292,0.22988239,105340.0,105330.0,0.33222153]
[1750309631494,0.22912239,105340.0,105330.0,0.33222153]
[1750309631651,0.22912239,105340.0,105330.0,0.34171496]
[1750309631867,0.03926099,105340.0,105330.0,0.34171496]
[1750309632076,0.03926099,105340.0,105330.0,0.3512083]
[1750309632681,0.03926099,105340.0,105330.0,0.34171496]
[1750309632932,0.03926099,105340.0,105330.0,0.53679496]
[1750309633120,0.02976792,105340.0,105330.0,0.5462483]
[1750309633460,0.02976792,105340.0,105330.0,0.55322896]
[1750309633678,0.02976783,105340.0,105330.0,0.57702896]
[1750309633908,0.03926071,105340.0,105330.0,0.57702896]
[1750309634133,0.02976783,105340.0,105330.0,0.57702896]
[1750309635183,0.04410994,105340.0,105330.0,0.57702896]
[1750309635628,0.03461715,105340.0,105330.0,0.57702896]
[1750309636207,0.02583481,105340.0,105330.0,0.57702896]
[1750309636655,0.04482012,105340.0,105330.0,0.57702896]
[1750309636933,0.03532724,105340.0,105330.0,0.57702896]
[1750309637184,0.04482012,105340.0,105330.0,0.57702896]
[1750309637392,0.05431319,105340.0,105330.0,0.54373562]
[1750309637620,0.05431309,105340.0,105330.0,0.55322896]
[1750309638405,0.03532724,105340.0,105330.0,0.57822896]
[1750309638617,0.04482012,105340.0,105330.0,0.57822896]
[1750309638845,0.03532724,105340.0,105330.0,0.57822896]
[1750309639240,0.04482012,105340.0,105330.0,0.57822896]
[1750309639458,0.03532724,105340.0,105330.0,0.57822896]
[1750309639677,0.04482012,105340.0,105330.0,0.57822896]
[1750309639898,0.24417449,105340.0,105330.0,0.85074219]
[1750309640117,0.24417449,105340.0,105330.0,0.86023562]
[1750309640338,0.25366756,105340.0,105330.0,0.86023562]
[1750309641023,0.23468243,105340.0,105330.0,0.85074219]
[1750309641541,0.22518955,105340.0,105330.0,0.84124867]
[1750309642540,0.21569658,105340.0,105330.0,0.83175506]
[1750309642733,0.21569658,105340.0,105330.0,0.84124876]
[1750309643374,0.21569658,105340.0,105330.0,0.83175506]
[1750309643594,0.21569658,105340.0,105330.0,0.84124885]
[1750309643730,0.21569658,105340.0,105330.0,0.86023616]
[1750309644204,0.21569658,105340.0,105330.0,0.12084176]
[1750309644406,0.21569658,105340.0,105330.0,0.53424237]
[1750309644621,0.21569658,105340.0,105330.0,0.5437358]
[1750309644889,0.21569658,105340.0,105330.0,0.5677358]
[1750309645118,0.22455808,105340.0,105330.0,0.5677358]
[1750309645589,0.22455808,105340.0,105330.0,0.55824237]
[1750309646281,0.22455808,105340.0,105330.0,0.50964237]
[1750309646512,0.52989745,105320.0,105300.0,0.30938082]
[1750309646739,0.5489063,105310.0,105300.0,0.32308406]
[1750309646972,0.5584018,105310.0,105300.0,0.63347844]
[1750309647193,0.38747777,105310.0,105300.0,0.64297457]
[1750309647413,0.56789802,105310.0,105300.0,0.64297457]
[1750309647634,0.56789802,105310.0,105300.0,0.63447844]
[1750309647874,0.55840252,105310.0,105300.0,0.63647844]
[1750309648107,0.55840252,105310.0,105300.0,0.63547844]
[1750309648558,0.55840252,105310.0,105300.0,0.63747844]
[1750309649700,0.54890693,105310.0,105300.0,0.55132817]
[1750309649926,0.54890693,105310.0,105300.0,0.56082448]
[1750309651033,0.54890693,105310.0,105300.0,0.5703207]
[1750309651260,0.54890693,105310.0,105300.0,0.57981683]
[1750309651701,0.54890693,105310.0,105300.0,0.87131638]
[1750309652152,0.35899145,105310.0,105300.0,0.87131638]
[1750309652600,0.59690693,105310.0,105300.0,0.004]
[1750309652845,0.54894607,105290.0,105280.0,0.11]
[1750309653114,0.03799218,105280.0,105270.0,0.4188258]
[1750309653336,0.02849379,105280.0,105270.0,0.71968631]
[1750309653557,0.0284937,105280.0,105270.0,0.71968631]
[1750309654000,0.01899559,105280.0,105270.0,0.52456631]
[1750309654224,0.00949766,105280.0,105270.0,0.71972631]
[1750309654681,0.00949766,105280.0,105270.0,0.56472631]
[1750309654903,0.4286734,105290.0,105280.0,0.23416591]
[1750309655120,0.42567277,105290.0,105280.0,0.37300344]
[1750309655349,0.41617538,105290.0,105280.0,0.37300344]
[1750309655583,0.42567277,105290.0,105280.0,0.37300344]
[1750309655807,0.43517025,105290.0,105280.0,0.37300344]
[1750309656028,0.44466782,105290.0,105280.0,0.3635056]
[1750309656246,0.63461938,105290.0,105280.0,0.35400767]
[1750309656465,0.62512253,105290.0,105280.0,0.33040776]
[1750309656681,0.62512253,105290.0,105280.0,0.34940371]
[1750309656912,0.63312253,105290.0,105280.0,0.34940371]
[1750309657148,0.58559202,105290.0,105280.0,0.29570965]
[1750309657594,0.57609454,105290.0,105280.0,0.10574024]
[1750309657815,0.56659697,105290.0,105280.0,0.09624176]
[1750309658035,0.61359697,105290.0,105280.0,0.13640176]
[1750309658269,0.61359697,105290.0,105280.0,0.29144176]
[1750309658480,0.63629792,105290.0,105280.0,0.29144176]
[1750309658694,0.61359697,105290.0,105280.0,0.29144176]
[1750309659340,0.53946789,105280.0,105270.0,0.15214118]
[1750309659564,0.53946789,105280.0,105270.0,0.44358294]
[1750309660438,0.54996609,105280.0,105270.0,0.64306988]
[1750309660665,0.57850709,105280.0,105270.0,0.64306988]
[1750309660880,0.58050709,105280.0,105270.0,0.44358294]
[1750309661302,0.57100889,105280.0,105270.0,0.44358294]
[1750309663067,0.57100889,105280.0,105270.0,0.45304232]
[1750309663317,0.59390889,105280.0,105270.0,0.24838294]
[1750309663542,0.57100889,105280.0,105270.0,0.45304232]
[1750309663970,0.57100889,105280.0,105270.0,0.68462837]
[1750309664385,0.57100889,105280.0,105270.0,0.66202837]
[1750309665117,0.57100889,105280.0,105270.0,0.67152739]
[1750309666132,0.57100889,105280.0,105270.0,0.68102632]
[1750309666352,0.57100889,105280.0,105270.0,0.67152739]
[1750309668781,0.57100889,105280.0,105270.0,0.65252926]
[1750309668993,0.5615106,105280.0,105270.0,0.65252926]
[1750309669214,0.5615106,105280.0,105270.0,0.66202846]
[1750309669430,0.5615106,105280.0,105270.0,0.65252926]
[1750309670145,0.5615106,105280.0,105270.0,0.66202837]
[1750309670371,0.5615106,105280.0,105270.0,0.67152739]
[1750309671259,0.5615106,105280.0,105270.0,0.65252926]
[1750309671473,0.5615106,105280.0,105270.0,0.46686837]
[1750309671705,0.5615106,105280.0,105270.0,0.67128739]
[1750309671950,0.5615106,105280.0,105270.0,0.47636739]
[1750309672178,0.5615106,105280.0,105270.0,0.67124739]
[1750309672375,0.5615106,105280.0,105270.0,0.66174837]
[1750309672808,0.5615106,105280.0,105270.0,0.66170837]
[1750309673045,0.5615106,105280.0,105270.0,0.67120739]
[1750309673771,0.5615106,105280.0,105270.0,0.44322294]
[1750309673981,0.5615106,105280.0,105270.0,0.45272232]
[1750309674640,0.58421337,105280.0,105270.0,0.44322294]
[1750309675167,0.58421337,105280.0,105270.0,0.19218118]
[1750309675386,0.53948685,105270.0,105260.0,0.22818]
[1750309675616,0.56218962,105270.0,105260.0,0.42298]
[1750309677199,0.56418962,105270.0,105260.0,0.19486]
[1750309677672,0.56518962,105270.0,105260.0,0.19486]
[1750309678363,0.56518962,105270.0,105260.0,0.0001]
[1750309678599,0.64893024,105270.0,105260.0,0.19486]
[1750309678820,0.65781037,105270.0,105260.0,0.19486]
[1750309679715,0.65781037,105270.0,105260.0,0.04014]
[1750309680175,0.6956449,105270.0,105260.0,0.04014]
[1750309680405,0.686765,105270.0,105260.0,0.04014]
[1750309680654,0.6582843,105270.0,105260.0,0.04014]